Cogmind - Beta 17 @@@ ROGUE MODE // 2026.07.24 @ 11:54:02 Player: aperiodic Result: Destroyed by S9-P7F(R) with Subdweller Machine Gun Performance ------------- Evolutions (0) 0 Regions Visited (2) 400 Robots Destroyed (29) 145 Value Destroyed (655) 655 Prototype IDs (0) 0 Alien Tech Used (0) 0 Bonus (0) 0 TOTAL SCORE: 1200 Bonus ------- None Cogmind --------- Core Integrity 0/250 Matter 295/300 Energy 240/250 System Corruption 0% Temperature Cool (14) Movement Treading (240) Ox1 Location -10/Subcaves Parts ------- > --- POWER (1) -------- Ion Engine > --- PROPULSION (2) --- Light Treads Light Treads > --- UTILITY (2) ------ High-capacity Storage Unit Makeshift Thermal Plating > --- WEAPON (2) ------- Subdweller Beam Cannon > --- INVENTORY (20) --- Subdweller Power Source Light Treads Wheel Wheel Wheel Compact Wheel Compact Wheel Compact Wheel Heat Sink Small Storage Unit High-capacity Storage Unit Machine Analyzer Seismic Detector Heavy EM Pulse Gun Heavy EM Pulse Gun Heavy EM Pulse Gun Beam Cannon Light Assault Rifle Subdweller Machine Gun Grenade Launcher Peak State ------------ > --- POWER ------------ Ion Engine > --- PROPULSION ------- Light Treads Light Treads > --- UTILITY ---------- High-capacity Storage Unit Makeshift Thermal Plating > --- WEAPON ----------- Subdweller Beam Cannon Mining Laser > --- INVENTORY -------- Subdweller Power Source Light Treads Wheel Wheel Wheel Compact Wheel Compact Wheel Compact Wheel Heat Sink Small Storage Unit High-capacity Storage Unit Machine Analyzer Seismic Detector Heavy EM Pulse Gun Heavy EM Pulse Gun Heavy EM Pulse Gun Beam Cannon Light Assault Rifle Subdweller Machine Gun Grenade Launcher [Rating: 13] Favorites ----------- Power Ion Engine Engine Ion Engine Propulsion Light Treads Treads Light Treads Wheel Wheel Utility High-capacity Storage Unit Device Seismic Detector Storage High-capacity Storage Unit Protection Makeshift Thermal Plating Weapon Medium Laser Energy Gun Medium Laser Energy Cannon Subdweller Beam Cannon Ballistic Gun Light Assault Rifle Special Weapon Mining Laser Build | -11 -10 -10 ------- Run | Yrd Mat Sub Slots Evolved . | . . . Power . | . . . Propulsion . | . . . Utility . | . . . Weapon . | . . . Parts Attached 25 | 8 11 6 Power 2 | 1 1 . Engine 2 | 1 1 . Core . | . . . Reactor . | . . . Propulsion 8 | 2 3 3 Treads 4 | . 2 2 Leg . | . . . Wheel 4 | 2 1 1 Hover . | . . . Flight . | . . . Utility 8 | 2 4 2 Device 4 | 1 2 1 Storage 3 | 1 2 . Processor . | . . . Hackware . | . . . Protection 1 | . . 1 Artifact . | . . . Weapon 7 | 3 3 1 Energy Gun 4 | 2 2 . Energy Cannon 1 | . . 1 Ballistic Gun 1 | 1 . . Ballistic Cannon . | . . . Launcher . | . . . Special Weapon 1 | . 1 . Impact Weapon . | . . . Slashing Weapon . | . . . Piercing Weapon . | . . . Special Melee Weapon . | . . . Unidentified Prototypes . | . . . Parts Lost 2 | . 1 1 Power 1 | . 1 . Propulsion . | . . . Utility . | . . . Weapon 1 | . . 1 Highest Loss Streak 1 | . 1 1 To Critical Strikes . | . . . Average Backups 16 | 4 14 19 Power . | . . 1 Propulsion 6 | 2 6 7 Utility 3 | . 2 4 Weapon 5 | 1 4 7 Tool/Special . | . . . Unused Backups 11 | . . 11 Power 2 | . . 2 Propulsion 3 | . . 3 Utility 1 | . . 1 Weapon 5 | . . 5 Tool/Special . | . . . Average Slot Usage (%) 99 | . 99 100 Engine 13 | . 13 14 Treads 13 | . 11 16 Wheel 14 | . 16 11 Device 13 | . 14 13 Storage 14 | . 14 14 Energy Gun 18 | . 25 11 Energy Cannon 4 | . . 8 Special Weapon 4 | . . 8 Peak Build Rating 13 | 7 11 13 Average Rating 9 | 5 8 11 On Entrance 6 | . 7 11 Avg Prop Armor Cover (%) . | . . . Naked Turns . | . . . Heaviest Build 58 | 15 52 58 Greatest Support 40 | 20 40 40 Greatest Overweight (x) 2 | 1 2 2 Average Overweight (x) 1 | . 1 1 Largest Inventory Capacity 20 | 8 20 20 Average Capacity 19 | 7 19 20 Most Carried 20 | 8 20 20 Average Carried 16 | 4 14 19 Final Capacity 20 | 8 20 20 Final Carried 20 | 7 20 20 Class Distribution -------------------- 100% | Mutant Dominant Class ---------------- Mutant | -10/Materials Mutant | -10/Subcaves Resources | -11 -10 -10 ----------- Run | Yrd Mat Sub Matter Collected 664 | 280 174 210 Remotely . | . . . Salvage Created 1063 | 142 659 262 Parts 52 | 10 25 17 Haulers Intercepted 1 | . 1 . Recyclers Shooed 1 | . 1 . Parts Field Recycled . | . . . Retrieved Matter . | . . . Parts Self-Destructed 4 | . . 4 Prevented . | . . . Parts Restored . | . . . Kills | -11 -10 -10 ------- Run | Yrd Mat Sub Combat Hostiles Destroyed 17 | . 12 5 Guns 15 | . 11 4 Cannons 1 | . . 1 Classes Destroyed 10 | 2 6 2 Worker 1 | . 1 . Tunneler 5 | 4 1 . Hauler 1 | . 1 . Recycler 3 | 1 2 . Operator 1 | . 1 . Watcher 1 | . 1 . Swarmer 3 | . 3 . Grunt 9 | . 9 . Sentry 1 | . . 1 Subdweller 4 | . . 4 Best Kill Streak 5 | 5 4 2 Combat Bots Only 2 | . 2 2 Max Kills in Single Turn 2 | 1 2 1 Gunslinging 1 | . 1 . Exploded . | . . . Melee . | . . . Uniques/NPCs Destroyed . | . . . Combat | -11 -10 -10 -------- Run | Yrd Mat Sub Hostile Shots Fired 90 | . 59 31 Missed 25 | . 16 9 Hits 65 | . 43 22 Projectile 65 | . 43 22 Damage Taken 937 | . 513 424 Core 256 | . 132 124 Absorbed by Shields . | . . . Ignored by Resistances 4 | . . 4 Core Remaining (%) 100 | 100 . . Volleys Fired 121 | 8 66 47 Largest 2 | 2 2 2 Hottest 100 | 100 100 100 Shots Fired 203 | 16 128 59 Gun 164 | 16 124 24 Cannon 8 | . . 8 Launcher . | . . . Special 31 | . 4 27 Kinetic 9 | . 9 . Thermal 170 | 16 119 35 Explosive . | . . . Electromagnetic 24 | . . 24 Robot Hit Streak 20 | 5 16 20 Robot Miss Streak 3 | 2 3 2 Penetration Max . | . . . Secondary Targets 2 | . 1 1 Max Gunslinging Chain 1 | . 1 1 Shots Hit Robots 114 | 9 79 26 Core Hits 48 | 6 33 9 Critical Kills . | . . . Critical Parts Destroyed . | . . . Critical Strikes 11 | 2 8 1 Burn 10 | 2 8 . Corrupt 1 | . . 1 Melee Attacks . | . . . Impact . | . . . Slashing . | . . . Piercing . | . . . Sneak Attacks . | . . . Combat Hostiles . | . . . Follow-up Attacks . | . . . Damage Inflicted 1569 | 108 1022 439 Guns 1350 | 108 998 244 Cannons 195 | . . 195 Explosions . | . . . Melee . | . . . Ramming . | . . . Kinetic 48 | . 48 . Thermal 1277 | 108 974 195 Explosive . | . . . Electromagnetic 244 | . . 244 Impact . | . . . Slashing . | . . . Piercing . | . . . Highest Corruption . | . . . Average Corruption . | . . . Corruption Purged . | . . . Corruption Blocked . | . . . Overload Shots . | . . . Overflow Damage 3 | . 3 . Projectiles 3 | . 3 . Explosions . | . . . Melee . | . . . Knockbacks . | . . . Impact . | . . . Kinetic . | . . . Secondary . | . . . Self-Inflicted Damage . | . . . Shots . | . . . Rammed . | . . . Targets Rammed . | . . . Kicked . | . . . Crushed . | . . . Highest Temperature 354 | 195 354 34 Average Temperature 85 | 75 91 15 Received Heat Transfer 321 | . 255 66 Effects 3 | . 3 . Shutdowns 1 | . 1 . Interference 2 | . 2 . Siege Activations . | . . . Martial Activations . | . . . Shielding Activations . | . . . Robots Disrupted . | . . . Combat Hostiles . | . . . Robots Corrupted . | . . . Combat Hostiles . | . . . Parts Fried 1 | . . 1 Impact Corruptions . | . . . Robots Melted 2 | . 2 . Combat Hostiles 1 | . 1 . Parts Melted 12 | 1 11 . Heat Transferred 4046 | 481 3306 259 Parts Sabotaged . | . . . Parts Stolen . | . . . Parts Stripped . | . . . Power Chain Reactions . | . . . Alert | -11 -10 -10 ------- Run | Yrd Mat Sub Maximum Alert Level . | . . . Low Security (%) 100 | 100 100 . Level 1 . | . . . Level 2 . | . . . Level 3 . | . . . Level 4 . | . . . Level 5 . | . . . High Security . | . . . Max Security . | . . . Peak Influence 191 | 15 191 . Initial 3 | . 3 . Average 69 | 2 74 . Influence Increases 492 | 25 447 20 Destroy 0b10 Robot/C 260 | . 240 20 Destroy 0b10 Robot/NC 60 | 25 35 . Destroy Leader 64 | . 64 . Successful Hack 28 | . 28 . Destroy Structure 5 | . 5 . Lose Combat Pursuer 75 | . 75 . Influence Decreases 492 | 20 317 155 Entered New Map 68 | . 2 66 Time Decay 414 | 20 305 89 Lost Part 10 | . 10 . Squads Dispatched 4 | . 4 . Investigation 1 | . 1 . Extermination . | . . . Reinforcement 3 | . 3 . Assault . | . . . Garrison . | . . . Intercept . | . . . Searches Triggered . | . . . Construction Impeded . | . . . Haulers Reinforced . | . . . Active Scanning Responses . | . . . Cargo Convoy Interrupts . | . . . Stealth | -11 -10 -10 --------- Run | Yrd Mat Sub Distress Signals 3 | . 3 . Communications Jammed . | . . . Distress Signals . | . . . Times Spotted 36 | . 30 6 Peak Tracking Total 6 | . 6 2 Tactical Retreats 3 | . 3 . Traps | -11 -10 -10 ------- Run | Yrd Mat Sub Traps Triggered 1 | . 1 . Indirectly . | . . . Trap Hack Attempts . | . . . Triggered . | . . . Disarmed . | . . . Reprogrammed . | . . . Reused . | . . . Traps Extracted . | . . . Installed . | . . . Triggered . | . . . Machines | -11 -10 -10 ---------- Run | Yrd Mat Sub Machines Disabled . | . . . Max in Single Turn . | . . . Machines Repaired . | . . . Machines Dismantled . | . . . Machines Sabotaged . | . . . Overloaded Fab Kills . | . . . Hacking | -11 -10 -10 --------- Run | Yrd Mat Sub Machines Accessed 5 | . 4 1 Terminals 4 | . 4 . Fabricators . | . . . Repair Stations . | . . . Recycling Units . | . . . Scanalyzers . | . . . Garrison Access . | . . . Total Hacks 17 | . 13 4 Successful 10 | . 6 4 Failed 7 | . 7 . Catastrophic 1 | . 1 . Database Lockouts . | . . . Manual 13 | . 13 . Terminals 13 | . 13 . Fabricators . | . . . Repair Stations . | . . . Recycling Units . | . . . Scanalyzers . | . . . Garrison Access . | . . . Terminal Hacks 6 | . 2 4 Record 4 | . . 4 Robot Analysis 2 | . 2 . Fabricator Hacks . | . . . Repair Station Hacks . | . . . Recycling Unit Hacks . | . . . Scanalyzer . | . . . Garrison Access Hacks . | . . . Unauthorized Hacks 4 | . 4 . Terminals 4 | . 4 . Botnet 1 | . 1 . Skim 3 | . 3 . Fabricators . | . . . Repair Stations . | . . . Recycling Units . | . . . Scanalyzers . | . . . Garrison Access . | . . . Data Cores Recovered . | . . . Used . | . . . Hacking Detections 2 | . 2 . Full Trace Events . | . . . Feedback Events . | . . . Feedback Blocked . | . . . Robot Schematics Acquired . | . . . Robots Built . | . . . Authchips . | . . . Time . | . . . Total Robot Build Rating . | . . . Part Schematics Acquired . | . . . Parts Built . | . . . Authchips . | . . . Time . | . . . Total Part Build Rating . | . . . Part Studies Acquired . | . . . Parts Repaired . | . . . Time . | . . . Parts Recycled . | . . . Recycled Matter . | . . . Retrieved Matter . | . . . Retrieved Components . | . . . Parts Scanalyzed . | . . . Part Schematics Acquired . | . . . Parts Damaged . | . . . Bothacking | -11 -10 -10 ------------ Run | Yrd Mat Sub Used RIF Installer . | . . . Robots Hacked . | . . . Non-combat . | . . . Combat . | . . . Robot Hacks Applied . | . . . Relay Couplers Released . | . . . Fabnet Peak Effective % . | . . . Robots Rewired . | . . . Allies Hacked . | . . . Hacks Repelled . | . . . Allies | -11 -10 -10 -------- Run | Yrd Mat Sub Total Allies . | . . . Largest Group . | . . . Highest-Rated Group . | . . . Highest-Rated Ally . | . . . Total Orders . | . . . Ally Attacks . | . . . Total Damage . | . . . Kills . | . . . Allies Corrupted . | . . . Allies Melted . | . . . Intel | -11 -10 -10 ------- Run | Yrd Mat Sub Active Infowar (turns) 1478 | 9 391 1078 Seismic 1478 | 9 391 1078 Robot Analysis Total 2 | . 2 . Derelict Logs Recovered 1 | . . 1 Drone Launches . | . . . Drone Recoveries . | . . . Exploration | -11 -10 -10 ------------- Run | Yrd Mat Sub Turns Passed 2675 | 95 1281 1299 Spaces Moved 1356 | 59 619 678 Core 4 | 4 . . Treads 372 | . 137 235 Legs . | . . . Wheels 980 | 55 482 443 Hover . | . . . Flight . | . . . Fastest Speed 50 | 50 80 105 Average Speed 143 | 80 136 155 Slowest Speed 240 | 100 240 240 Overloaded Moves . | . . . Propulsion Burnouts . | . . . Robots Hopped . | . . . Potential Cave-ins . | . . . Cave-ins Triggered . | . . . Exploration Rate (%) 45 | 4 91 41 Regions Visited 2 Branch Regions 1 Pre-discovered Areas 1 | . . 1 Known Exits Taken . | . . . Unknown Exits Taken 2 | 1 1 . Scrap Searched . | . . . Spaces Dug 1 | . 1 . Terrain Destroyed 3 | . 2 1 Melee . | . . . Projectile 3 | . 2 1 AOE . | . . . Terrain Rammed . | . . . Walls Destroyed . | . . . Machines Disabled . | . . . Actions | -11 -10 -10 --------- Run | Yrd Mat Sub Total 1804 | 86 918 800 Wait 246 | 4 197 45 Move 1354 | 58 618 678 Hop . | . . . Pick Up 26 | 8 14 4 Fast Attach 8 | 6 1 1 Attach 2 | 1 1 . Detach 1 | . . 1 Swap 37 | 1 17 19 Drop 9 | . 4 5 Fire 121 | 8 66 47 Melee . | . . . Ram . | . . . Kick . | . . . Crush . | . . . Escape Stasis . | . . . Rewire . | . . . Trap . | . . . Miscellaneous . | . . . Route ------- -11/Scrapyard -10/Materials (discovered 5 exits: [*Mat x3] / [*Min] / *Sub) -10/Subcaves History --------- Turn | Location | Event 55 | -11/Scrapyard | Discovered new exit (range 16) 96 | -11/Scrapyard | Entered Materials 312 | -10/Materials | Build established: Mutant 419 | -10/Materials | Discovered new exit (range 10) 809 | -10/Materials | Discovered new exit (range 7) 846 | -10/Materials | Discovered new exit (range 7) 988 | -10/Materials | Discovered new exit (range 16) 1073 | -10/Materials | Core integrity fell below 50% 1149 | -10/Materials | Discovered new exit (range 11) 1377 | -10/Materials | Entered Subcaves 1378 | -10/Subcaves | Approached by a straggling Scientist 1608 | -10/Subcaves | Learned location of Storage (-8) 1646 | -10/Subcaves | Visited Clippyterm 1649 | -10/Subcaves | Learned 40 Factory zone layouts 1649 | -10/Subcaves | Learned Factory emergency access door positions 1905 | -10/Subcaves | Shifting Twisted Machinery released Sub. Optics 1910 | -10/Subcaves | Shifting Twisted Machinery released Sub. Beam Cannon 1988 | -10/Subcaves | Shifting Twisted Machinery released Mak. Thermal Plating 1989 | -10/Subcaves | Shifting Twisted Machinery released Battle Rifle 2658 | -10/Subcaves | Core integrity fell below 20% 2676 | -10/Subcaves | Destroyed by S9-P7F(R) with Subdweller Machine Gun Last Messages --------------- 01917_ Dropped Med. Laser. 01918_ Dropped Hvy. EM Pulse Gun. 01919_ Acquired Sub. Beam Cannon. Mak. Thermal Plating falls loose from the Twisted Machinery. Battle Rifle falls loose from the Twisted Machinery. 01998_ Acquired Mak. Thermal Plating. 02049_ Y-45 Defender destroyed. 02051_ Acquired 50 matter. 02055_ Heat Sink fries itself beyond repair. 02055_ Lgt. Armor Plating fries itself beyond repair. 02056_ Hvy. Assault Rifle fries itself beyond repair. 02058_ Imp. Ion Engine fries itself beyond repair. 02283_ Acquired 7 matter. 02524_ Acquired 3 matter. 02670_ Mining Laser destroyed. Map ----- +----------------------------------------------------+ | ?????????????????????????????????????????????????? | | ?????????????????????????????????????????????????? | | ?????????????????????????????????????????????????? | | ?????????????????????????????????????????????????? | | ?????????????????????????????????????????????????? | | ?????????????????????????????????????????????????? | | ?????????????????????????????????????????????????? | | ?????????????????????????????????????????????????? | | ?????????????????????????????????????????????????? | | ?????????????????#???????????????????????????????? | | ???????????????## ??????????????????????????????? | | ????????????? ## ??????????????????????????????? | | ????????????? ?????????????????????????????? | | ???????????? ?????????????????????????????? | | ???????????? ??????????????????###???????? | | ???????????# #????????????????## #???????? | | ???????????? #???????????????# "#???????? | | ???????????? #??????????????## ##??????? | | ????????????? ###?############ #??????? | | ???????????????# ;#?# ## # " #??????? | | ???????????????????# R ###""" ""#??????? | | ????????????????????# """" " ####??????? | | ????????????????????#### """" "# # "% #?????????? | | ????????? ???????????## "" ##### " "##????????? | | ???????? ???????####?# "" ##???##"" "####?????? | | ????????# ?????## ###@ " #?????##" #?????? | | ????????# ?????# ## #??????### ##?????? | | ?????# ?????# ##???????# ##??????? | | ????## ?????### ##??????# ##???????? | | ##### ???????# ##?????###????????? | | ????????# ##???????????????? | | % ???????# ##### ##??????????????? | | ? #???????# #??## #??????????????? | | ## #???????## ##??# ##??????????????? | | # # #######??###???## ######??????????? | | ## ########### ## #??????????? | | "" #?# ##?????????? | | ??# % #?## #?????????? | | ???# ### ##=# # ##?????????? | | #### ### ##### #?????????? | | #?## ##???## #?????????? | | " ### ### #???# ##?????????? | | " ##?##### ##???# ##?????????? | | #??????## #????# #?????????? | | ###### ####?????# ### # #???## #?????????? | | ?????# ## #????# #? ###???# #?????????? | | ?????## ## #??# ####?????# ##?????????? | | ??????# #?# #?# ???????### #??????????? | | ?????## ### #### ????????# #??????????? | | ????## ## #### ##???????###??????????? | +----------------------------------------------------+ Best States ------------- Heat Dissipation 35 Energy Generation 10 Energy Capacity 250 Matter Stores 300 Matter Capacity 300 Sight Range 16 Terrain Scan Density 10 Armor Coverage 100 Resistance: TH 10 Evasion (%) 44 Recoil Reduction 2 Item Schematics ----------------- None Robot Schematics ------------------ None Fabricated ------------ Nothing Repaired ---------- Nothing Studied --------- None Alien Tech Used ----------------- None Achievements -------------- None Challenges ------------ None Game ------ Seed AnalysisRemoteFocus Manual? 0 Play Time 00:23:01 Cumulative 754.6 hours Start 2026.07.24 @ 11:33:41 End 2026.07.24 @ 11:54:02 Sessions 1 Manual Loads 0 Difficulty Rogue Special Mode None Game No. 263 Rogue 259 Adventurer 4 Explorer 0 Win Type - Total 21 Types 9/2/6/0/0/0/2/2/0/0 Lore% 86 Gallery% 76 Achievement% 59 Wizard Run 0 Options --------- Layout 1 ASCII 0 Keyboard 0 Movement Arrows Keybinds 0 Fullscreen 1 Font 40/SmallcapsGlow Map View 50x40 Zoom Use 0% Tactical HUD 1 Map Filters NONE Filters NONE Steam 1 RUN: 3f764779-bee6-46b0-befd-3b0914f9fb13